bitfinex-derivatives/quotes_ETHF0:USTF0_20220106
["timestamp","ask_amount","ask_price","bid_price","bid_amount"]
[1641446148266,12.43,3470.3,3470.0,1.11395104]
[1641446148467,1.51324,3470.2,3470.0,1.11395104]
[1641446148666,1.44128563,3470.1,3469.4,1.03182645]
[1641446148868,1.5,3469.9,3469.3,0.9166632]
[1641446149071,1.5,3469.7,3469.3,0.9166632]
[1641446149370,12.43,3469.8,3469.3,0.9166632]
[1641446150172,12.43,3469.8,3468.8,0.9166632]
[1641446150377,2.00479,3469.4,3469.2,0.132394]
[1641446150571,2.01803,3469.4,3469.3,0.229991]
[1641446150772,2.00479,3469.4,3469.2,0.132394]
[1641446151172,2.00479,3469.4,3469.2,1.30419191]
[1641446151572,2.00479,3469.4,3469.3,0.229991]
[1641446152672,2.01803,3469.4,3469.2,1.30419191]
[1641446152875,2.00479,3469.4,3469.3,0.229991]
[1641446153474,2.00479,3469.4,3469.3,1.729991]
[1641446153878,2.00479,3469.4,3469.3,0.229991]
[1641446154075,2.00479,3469.4,3469.3,1.75765599]
[1641446154374,2.00479,3469.9,3469.3,3.25765599]
[1641446154575,2.00479,3469.9,3469.4,0.132394]
[1641446154775,2.00479,3469.9,3469.4,1.014694]
[1641446155175,12.43,3469.8,3469.4,1.014694]
[1641446155378,12.43,3469.8,3469.4,0.8823]
[1641446155776,2.00479,3469.9,3469.3,0.61100179]
[1641446156477,2.00479,3469.4,3469.3,0.74339579]
[1641446156675,2.00479,3469.4,3469.3,0.97338679]
[1641446156877,2.00479,3469.4,3469.3,0.229991]
[1641446157077,2.01803,3469.4,3469.1,2.2323219]
[1641446157276,2.00479,3469.4,3469.1,1.01261737]
[1641446157476,2.00479,3469.4,3469.2,0.229991]
[1641446157676,2.00479,3469.4,3469.1,1.01261737]
[1641446157878,0.01324,3469.3,3469.1,1.01261737]
[1641446158077,2.00479,3469.4,3469.1,1.01261737]
[1641446158276,16.43958,3469.4,3469.2,1.83068741]
[1641446158677,4.00958,3469.4,3469.2,1.83068741]
[1641446159279,16.43958,3469.4,3469.3,0.61098288]
[1641446159479,4.00958,3469.4,3469.3,0.61098288]
[1641446159680,4.02282,3469.4,3469.3,0.61098288]
[1641446159881,16.43958,3469.4,3469.3,0.61098288]
[1641446160280,4.00958,3469.4,3469.3,0.61098288]
[1641446160680,4.02282,3469.4,3469.3,0.61098288]
[1641446160880,4.00958,3469.4,3469.3,0.84097388]
[1641446161080,4.00958,3469.4,3469.3,0.61098288]
[1641446161380,16.43958,3469.4,3469.2,1.21970453]
[1641446161582,0.01324,3469.3,3469.2,0.91041097]
[1641446161783,16.43958,3469.4,3469.2,1.14040197]
[1641446162181,16.43958,3469.4,3469.2,0.91041097]
[1641446162382,0.01324,3469.3,3469.2,0.91041097]
[1641446162582,16.43958,3469.4,3469.2,0.91041097]
[1641446162785,16.43958,3469.4,3469.2,1.52143655]
[1641446162985,1.5,3469.3,3468.7,1.53280789]
[1641446163183,1.5,3469.0,3468.7,1.53280789]
[1641446163382,0.01324,3468.9,3468.7,1.53280789]
[1641446163782,0.01324,3468.9,3468.5,1.8277625]
[1641446163982,0.01324,3468.9,3468.4,1.53280789]
[1641446164384,14.43479,3468.5,3468.4,1.53280789]
[1641446164782,14.44803,3468.5,3468.4,1.53280789]
[1641446165184,2.01803,3468.5,3468.4,1.53280789]
[1641446165784,2.00479,3468.5,3468.4,0.229991]
[1641446166485,1.95545149,3469.3,3468.4,0.229991]
[1641446166685,1.95545149,3469.3,3468.4,1.096491]
[1641446166889,1.95545149,3469.3,3468.5,2.47776283]
[1641446167085,1.95545149,3469.3,3468.8,1.5]
[1641446167288,2.00479,3469.4,3468.8,1.5]
[1641446167485,2.00479,3469.4,3468.9,0.132394]
[1641446167685,2.00479,3469.4,3468.9,1.11015683]
[1641446167886,2.00479,3469.4,3469.0,0.8168719]
[1641446168088,2.00479,3469.4,3469.3,0.12]
[1641446168286,2.00479,3469.4,3469.3,0.349991]
[1641446168586,2.00479,3469.4,3469.3,0.482385]
[1641446169489,2.00479,3469.6,3469.3,1.982385]
[1641446169686,2.00479,3469.6,3469.5,1.5]
[1641446169886,2.00479,3469.6,3469.5,1.862385]
[1641446171789,2.00479,3470.2,3469.5,1.862385]
[1641446172188,2.00479,3470.2,3469.5,2.83987574]
[1641446172488,2.00479,3470.2,3469.6,0.97747878]
[1641446172688,2.00479,3470.2,3469.7,0.132394]
[1641446173890,2.00479,3470.2,3469.6,2.56839374]
[1641446174090,15.22429,3470.2,3469.6,2.56839374]
[1641446174491,2.79429,3470.2,3469.6,1.16797985]
[1641446175592,2.00479,3470.2,3469.6,1.16797985]
[1641446177391,14.43479,3470.2,3469.6,1.16797985]
[1641446177790,14.43479,3470.2,3469.6,1.03558585]
[1641446179593,1.5,3469.7,3469.6,1.03558585]
[1641446179793,12.43,3469.6,3469.3,0.12]
[1641446180598,12.43,3469.4,3469.3,0.12]
[1641446182600,14.43479,3469.4,3469.3,0.12]
[1641446183503,2.00479,3469.4,3469.3,0.12]
[1641446183701,2.00479,3469.4,3469.3,0.349991]
[1641446185402,2.01803,3469.4,3469.3,0.12]
[1641446186105,14.44803,3469.4,3469.3,0.12]
[1641446187005,14.43479,3469.4,3469.3,0.12]
[1641446187406,14.43479,3469.4,3469.3,0.349991]
[1641446187604,14.43479,3469.4,3469.3,0.12]
[1641446187804,14.44803,3469.4,3469.3,0.12]
[1641446188710,14.43479,3469.4,3469.3,0.12]
[1641446188907,14.44803,3469.4,3469.3,0.12]
[1641446189508,15.17553,3469.4,3469.1,0.84414529]
[1641446189709,1.5,3469.2,3468.7,2.00479]
[1641446189908,15.17553,3469.4,3468.4,0.8979465]
[1641446189909,1.5,3468.9,3468.4,0.8979465]
[1641446190309,1.5,3469.2,3468.4,0.8979465]
[1641446190509,2.00479,3468.7,3468.4,0.8979465]
[1641446190711,12.44324,3468.6,3468.4,0.8979465]
[1641446191112,1.5,3468.5,3468.3,5.44e-06]
[1641446191312,1.5,3468.5,3468.1,1.01882794]
[1641446191510,1.5,3468.2,3467.6,1.8277625]
[1641446191710,0.01324,3468.1,3467.6,1.8277625]
[1641446191910,0.01324,3468.1,3467.5,1.19468682]
[1641446192310,1.5,3467.9,3467.5,1.19468682]
[1641446192510,2.00479,3467.6,3467.5,1.19468682]
[1641446192810,2.00479,3467.6,3467.5,2.17295165]
[1641446192811,14.44803,3467.6,3467.5,2.17295165]
[1641446193413,14.44803,3467.6,3467.5,0.97826483]
[1641446193812,14.44803,3467.6,3467.4,0.97826483]
[1641446195711,14.44803,3467.6,3467.5,0.229991]
[1641446195712,2.00479,3467.6,3467.5,0.229991]
[1641446195911,2.00479,3467.6,3467.5,0.893791]
[1641446196313,2.00479,3467.6,3467.5,2.00444983]
[1641446196811,2.00479,3468.2,3467.5,2.00444983]
[1641446197010,2.00479,3468.2,3467.6,1.5]
[1641446197211,2.00479,3468.2,3468.0,1.5]
[1641446197412,92.1449,3469.3,3468.1,0.229991]
[1641446197618,62.2386,3469.3,3468.1,0.97826483]
[1641446197811,1.95545149,3469.8,3468.2,1.44114438]
[1641446198012,1.95545149,3469.8,3468.9,1.5]
[1641446198213,1.95545149,3469.8,3468.9,2.1256]
[1641446198614,2.00479,3469.1,3469.0,0.97826483]
[1641446198917,2.00479,3469.1,3469.0,2.16632798]
[1641446199914,15.01003,3469.1,3469.0,1.93633698]
[1641446200115,4.08003,3469.1,3468.3,2.00479]
[1641446200315,12.43,3469.0,3467.9,1.53280789]
[1641446200717,2.00479,3468.5,3467.9,1.53280789]
[1641446200916,2.00479,3468.5,3468.1,0.85716978]
[1641446201717,2.00479,3469.1,3468.1,1.63126978]
[1641446201916,2.00479,3469.1,3468.3,1.5]
[1641446202317,2.00479,3469.1,3468.4,0.132394]
[1641446203018,2.00479,3469.4,3468.4,0.132394]
[1641446203219,2.00479,3469.4,3468.6,1.44101147]
[1641446203418,2.00479,3469.4,3468.7,1.57217301]
[1641446203620,2.00479,3469.4,3468.7,1.43977901]
[1641446203819,14.43479,3469.4,3468.7,1.43977901]
[1641446204320,1.5,3469.2,3468.7,1.43977901]
[1641446204520,15.87627715,3469.4,3468.7,1.43977901]
[1641446204820,14.43479,3468.8,3468.7,1.43977901]
[1641446205021,14.44803,3468.8,3468.7,1.43977901]
[1641446209226,14.44803,3468.8,3468.7,7.901e-05]
[1641446211926,15.05453,3468.8,3468.1,0.86860607]
[1641446216634,16.55453,3468.8,3468.1,0.86860607]
[1641446217433,1.5,3468.5,3468.1,0.86860607]
[1641446217634,12.43,3468.6,3468.1,0.86860607]
[1641446217836,1.5,3468.5,3468.1,0.86860607]
[1641446218133,1.5,3468.5,3467.3,1.19129061]
[1641446218334,1.5,3468.5,3467.4,1.0313371]
[1641446218734,2.00479,3467.7,3467.4,1.0313371]
[1641446218934,2.00479,3467.7,3467.5,0.229991]
[1641446219437,12.43,3467.6,3467.4,1.0313371]
[1641446219934,2.00479,3467.7,3467.4,1.0313371]
[1641446220134,12.43,3467.6,3467.4,1.0313371]
[1641446220334,12.43,3467.6,3467.5,0.97827931]
[1641446220535,0.01324,3467.6,3467.5,0.97827931]
[1641446220735,2.00479,3467.7,3467.5,1.20827031]
[1641446220939,32.53299632,3468.9,3467.5,3.39627031]
[1641446221137,31.92439632,3468.9,3468.0,1.5]
[1641446221337,1.29719632,3468.9,3467.7,1.5]
[1641446221536,1.29719632,3468.9,3468.1,0.97827931]
[1641446221736,1.29719632,3468.9,3467.8,0.97827931]
[1641446221939,1.29719632,3468.9,3468.2,0.97827931]
[1641446222137,1.29719632,3468.9,3468.2,0.922794]
[1641446222336,1.29719632,3468.9,3468.3,0.97827931]
[1641446222739,2.00479,3468.7,3468.4,0.132394]
[1641446223140,2.00479,3468.7,3468.5,1.20827031]
[1641446223739,2.00479,3468.7,3468.6,0.97827931]
[1641446223938,2.00479,3468.7,3468.6,0.73341309]
[1641446224141,2.00479,3468.7,3468.6,0.86580709]
[1641446225139,2.01803,3468.7,3468.6,0.73341309]
[1641446225340,2.00479,3468.7,3468.6,0.73341309]
[1641446226146,14.43479,3468.7,3468.6,0.73341309]
[1641446226343,14.44803,3468.7,3468.6,0.73341309]
[1641446227144,14.44803,3468.7,3467.4,0.89154598]
[1641446227343,16.63591643,3468.7,3467.4,0.89154598]
[1641446227541,16.63591643,3468.7,3467.5,0.97814472]
[1641446227944,16.63591643,3468.7,3467.6,0.9896547]
[1641446228343,16.63591643,3468.7,3467.7,0.97814472]
[1641446228543,1.5,3468.6,3467.7,0.97814472]
[1641446228744,12.43,3468.1,3467.7,0.97814472]
[1641446233647,12.43,3468.1,3467.8,1.80256768]
[1641446233848,2.00479,3468.2,3467.9,0.229991]
[1641446234147,0.01324,3468.1,3467.9,0.97814472]
[1641446235047,12.44324,3468.1,3468.0,0.61127707]
[1641446235247,12.44324,3468.1,3468.0,1.80256768]
[1641446235649,12.44324,3468.1,3468.0,2.7807124]
[1641446236051,0.01324,3468.1,3468.0,3.0107034]
[1641446236250,2.00479,3468.2,3468.0,3.0107034]
[1641446236653,2.00479,3468.2,3468.1,1.11053872]
[1641446236852,1.29719632,3468.6,3468.1,1.11053872]
[1641446237251,1.29719632,3468.6,3468.2,2.16320366]
[1641446237650,1.29719632,3468.6,3468.3,0.97814472]
[1641446237851,0.01324,3468.5,3468.3,0.97814472]
[1641446239351,0.01324,3468.5,3468.4,1.50727413]
[1641446239954,0.01324,3468.5,3468.4,2.48534901]
[1641446240552,0.01324,3468.5,3468.4,1.50727413]
[1641446240954,3.30198632,3468.7,3468.4,2.71533702]
[1641446241353,3.30198632,3468.7,3468.4,1.86965913]
[1641446241652,3.30198632,3468.7,3468.4,1.50727413]
[1641446241855,12.44324,3468.6,3468.4,0.89599706]
[1641446242756,12.44324,3468.6,3468.5,0.89599706]
[1641446243253,12.43,3468.6,3468.5,1.12598806]
[1641446243456,12.44324,3468.6,3468.5,0.89599706]
[1641446244254,12.44324,3468.6,3468.5,1.87406754]
[1641446244454,12.44324,3468.6,3468.5,0.89599706]
[1641446245456,12.54509755,3468.6,3468.5,0.9780774]
[1641446245656,12.54509755,3468.6,3468.4,0.89599706]
[1641446245856,12.54509755,3468.6,3468.5,0.9780774]
[1641446246356,0.11509755,3468.6,3468.5,0.9780774]
[1641446246959,0.10185755,3468.6,3468.5,1.9048684]
[1641446248162,0.132394,3468.5,3467.0,1.81365417]
[1641446248362,4.0,3467.9,3466.0,4.47248126]
[1641446248562,12.43,3467.0,3466.0,4.47248126]
[1641446248862,12.43,3466.7,3466.0,4.47248126]
[1641446249064,12.43,3466.7,3466.5,3.25227449]
[1641446249262,12.43,3466.5,3466.4,4.47248126]
[1641446249464,4.00958,3466.8,3466.4,6.03585026]
[1641446249664,1.5,3469.4,3466.7,1.5]
[1641446249863,1.5,3469.4,3466.4,5.13945026]
[1641446249864,0.4257,3470.3,3467.8,1.5]
[1641446250066,0.4257,3470.3,3468.1,1.5]
[1641446250466,1.866807,3470.3,3468.1,1.5]
[1641446250665,2.43255147,3469.5,3468.1,1.5]
[1641446250865,4.43734147,3469.5,3468.7,2.00479]
[1641446251066,4.43734147,3469.5,3468.8,0.132394]
[1641446251769,2.13156159,3469.5,3468.8,0.132394]
[1641446252667,2.00479,3469.5,3468.8,0.132394]
[1641446252870,2.00479,3469.5,3468.8,2.393894]
[1641446254268,1.444,3472.7,3468.8,3.002494]
[1641446254467,4.0,3471.8,3469.5,1.5]
[1641446254667,32.9527,3471.7,3469.7,1.5]
[1641446254868,2.00479,3470.5,3469.7,2.00479]
[1641446255069,2.00479,3470.5,3469.8,0.132394]
[1641446256870,0.26935411,3470.4,3469.8,0.132394]
[1641446258872,12.69935411,3470.4,3469.8,0.132394]
[1641446259071,0.26935411,3470.4,3469.7,2.79179058]
[1641446259272,1.5717695,3470.4,3469.7,2.79179058]
[1641446260472,1.30241539,3470.3,3469.7,2.79179058]
[1641446260971,1.30241539,3470.3,3469.7,2.92418458]
[1641446262572,1.30241539,3470.2,3469.7,2.92418458]
[1641446263675,0.26935411,3470.4,3469.7,2.92418458]
[1641446263676,1.5717695,3470.4,3469.7,2.92418458]
[1641446263874,1.5717695,3470.4,3469.7,2.79179058]
[1641446264074,1.5717695,3470.4,3469.7,3.69314679]
[1641446264774,1.5717695,3470.4,3469.8,0.61085461]
[1641446264975,1.30241539,3470.3,3469.8,0.74324861]
[1641446265475,1.5,3470.0,3469.8,0.61085461]
[1641446265674,1.67131402,3469.9,3469.6,1.201382]
[1641446265879,1.5,3469.7,3469.6,1.201382]
[1641446266075,12.43,3469.8,3469.6,1.201382]
[1641446266476,0.229991,3469.7,3469.4,1.49585626]
[1641446266675,12.43,3469.8,3469.4,1.49585626]
[1641446266876,2.00479,3469.6,3469.4,1.49585626]
[1641446267676,2.00479,3469.6,3469.5,0.063369]
[1641446267878,1.30241539,3470.4,3469.5,0.063369]
[1641446268078,1.30241539,3470.3,3469.5,0.063369]
[1641446268279,1.30241539,3470.3,3469.6,1.10979126]
[1641446268480,1.30241539,3470.3,3469.6,1.97169126]
[1641446268884,1.30241539,3470.3,3469.7,2.00479]
[1641446269286,1.30241539,3470.3,3469.7,2.137184]
[1641446269487,1.30241539,3470.3,3470.2,0.90122372]
[1641446269687,1.30241539,3470.7,3470.2,2.14313688]
[1641446269886,13.73241539,3470.7,3470.2,2.27553088]
[1641446270186,1.30241539,3470.7,3470.2,2.21216188]
[1641446270586,1.30241539,3470.7,3470.3,0.96459272]
[1641446270786,1.30241539,3470.7,3470.4,0.132394]
[1641446271786,1.30241539,3470.7,3470.4,1.632394]
[1641446271988,2.00479,3470.8,3470.4,0.132394]
[1641446272188,2.00479,3470.8,3470.5,0.063369]
[1641446272386,2.00479,3470.8,3470.6,0.132394]
[1641446272589,0.229991,3470.7,3470.6,0.132394]
[1641446272788,2.00479,3470.8,3470.6,0.132394]
[1641446273187,2.00479,3470.8,3470.7,0.063369]
[1641446278894,1.30241539,3471.2,3470.7,0.063369]
[1641446279192,1.30241539,3471.2,3471.1,1.5]
[1641446279391,1.30241539,3471.2,3471.1,2.363469]
[1641446279595,1.30241539,3471.2,3471.1,2.495863]
[1641446279892,1.30241539,3471.2,3471.1,3.47287091]
[1641446280093,1.95363565,3471.7,3471.1,3.12907345]
[1641446280292,1.95363565,3471.7,3471.1,4.56899351]
[1641446280491,1.95363565,3471.7,3471.2,0.97700791]
[1641446280692,1.95363565,3471.7,3471.3,0.132394]
[1641446281295,1.95363565,3471.7,3471.4,1.5]
[1641446281497,1.95363565,3471.7,3471.5,0.195763]
[1641446281692,1.95363565,3471.7,3471.5,0.132394]
[1641446282193,2.00479,3471.8,3471.6,0.063369]
[1641446282394,2.00479,3471.8,3471.7,1.44083845]
[1641446282600,2.234781,3471.8,3471.7,1.44083845]
[1641446282794,0.229991,3471.8,3471.7,1.30844445]
[1641446283597,2.77454115,3472.4,3471.7,1.37181345]
[1641446283795,12.43,3472.3,3471.7,1.30844445]
[1641446284394,13.19975115,3472.3,3471.7,2.21304696]
[1641446284995,12.43,3471.9,3471.7,2.21304696]
[1641446285196,0.229991,3471.8,3471.7,0.79894696]
[1641446285996,13.3052,3471.9,3471.7,0.063369]
[1641446286195,0.229991,3471.8,3471.2,2.00479]
[1641446286395,2.00479,3472.0,3471.3,0.132394]
[1641446286797,2.00479,3472.0,3471.3,0.728294]
[1641446286998,2.00479,3472.0,3471.4,0.97690234]
[1641446287199,2.00479,3472.0,3471.5,0.132394]
[1641446287400,2.00479,3472.4,3471.5,1.632394]
[1641446287599,2.00479,3472.4,3471.6,2.00172024]
[1641446288000,2.00479,3472.4,3471.7,1.10929634]
[1641446288199,2.00479,3472.4,3471.7,0.132394]
[1641446289000,2.00479,3472.4,3471.7,2.137184]
[1641446289599,2.00279,3472.4,3471.7,2.137184]
[1641446289801,2.00279,3472.4,3471.8,0.97673963]
[1641446290102,2.00279,3472.4,3471.9,0.132394]
[1641446295812,1.43950343,3474.2,3472.2,1.43950343]
[1641446296009,1.5,3473.7,3472.5,34.70981923]
[1641446296209,1.5,3473.7,3472.5,35.29641923]
[1641446296610,1.5,3473.7,3472.6,0.97668058]
[1641446296812,1.5,3473.7,3472.7,1.16294979]
[1641446297210,1.5,3473.7,3473.0,2.00479]
[1641446297612,1.5,3473.7,3473.1,0.132394]
[1641446298214,1.5,3473.2,3472.7,1.16294979]
[1641446298415,12.43,3473.6,3472.7,1.29534379]
[1641446298615,1.5,3473.3,3472.7,1.16294979]
[1641446299114,1.5,3472.9,3472.7,1.16294979]
[1641446299317,12.659991,3472.8,3472.0,2.00479]
[1641446299515,1.44016268,3472.6,3472.0,2.00479]
[1641446299718,1.5,3472.3,3472.0,2.00479]
[1641446299915,1.44016268,3472.6,3472.0,2.00479]
[1641446300420,12.43,3472.8,3472.0,2.00479]
[1641446300617,1.5,3472.5,3472.0,2.00479]
[1641446301116,1.5,3472.5,3472.4,2.00479]
[1641446301315,0.229991,3472.5,3472.4,2.00479]
[1641446301919,1.44001129,3473.0,3472.4,2.068159]
[1641446302117,1.44001129,3473.0,3472.4,2.00479]
[1641446302318,1.44001129,3473.0,3472.4,2.779084]
[1641446302920,2.00479,3473.1,3472.4,2.779084]
[1641446307023,14.43479,3473.1,3472.4,2.779084]
[1641446307225,14.43479,3473.1,3472.4,2.137184]
[1641446307522,2.00479,3473.1,3472.8,0.88846995]
[1641446307723,1.7807232,3473.0,3472.8,0.88846995]
[1641446307924,2.3273232,3473.0,3472.8,0.88846995]
[1641446308524,12.43,3472.9,3472.8,0.88846995]
[1641446308724,2.3273232,3473.0,3472.8,0.88846995]
[1641446308925,0.81771679,3473.0,3472.8,0.95183895]
[1641446309125,0.27111679,3472.9,3472.8,0.063369]
[1641446309327,0.27111679,3472.9,3472.8,0.195763]
[1641446310830,1.573247,3473.0,3472.8,0.195763]
[1641446311232,1.573247,3473.0,3472.9,2.00479]
[1641446312035,1.30213021,3473.1,3472.9,2.00479]
[1641446312236,1.30213021,3473.1,3473.0,0.195763]
[1641446313535,1.30213021,3473.4,3473.0,0.80606381]
[1641446315135,1.30213021,3473.4,3473.1,1.51311446]
[1641446315338,1.30213021,3473.4,3473.2,0.195763]
[1641446315534,0.229991,3473.3,3473.1,1.51311446]
[1641446316739,1.5,3473.2,3473.1,1.51311446]
[1641446317137,3.50479,3473.2,3472.8,1.18988467]
[1641446317340,15.93479,3473.2,3472.8,0.61018467]
[1641446317536,1.5,3472.9,3472.8,0.61018467]
[1641446317736,1.729991,3472.9,3472.8,0.61018467]
[1641446318136,0.229991,3472.9,3472.5,0.61018467]
[1641446318937,1.729991,3472.9,3472.5,0.61018467]
[1641446319137,1.5,3472.6,3472.2,2.3096929]
[1641446319339,1.5,3472.3,3472.0,5.31522091]
[1641446319538,1.5,3472.1,3472.0,3.51314792]
[1641446319954,1.44027676,3472.3,3472.0,3.51314792]
[1641446320339,1.67029681,3472.2,3472.0,3.51314792]
[1641446320538,1.44030581,3472.2,3472.0,3.51314792]
[1641446320742,1.44030581,3472.2,3472.0,2.00479]
[1641446321340,0.229991,3472.1,3472.0,2.00479]
[1641446325653,1.729991,3472.1,3472.0,2.00479]
[1641446325855,16.25049183,3472.1,3471.2,1.09809971]
[1641446326053,1.5,3471.3,3471.1,1.50207299]
[1641446326254,1.729991,3471.2,3471.1,1.50207299]
[1641446326653,0.229991,3471.2,3471.1,1.50207299]
[1641446327456,0.229991,3471.2,3470.8,2.00479]
[1641446327758,2.00479,3471.6,3470.9,1.1094289]
[1641446328055,2.00479,3471.6,3470.9,1.7155289]
[1641446328257,2.00479,3471.6,3471.0,0.9770349]
[1641446328455,2.00479,3471.6,3471.1,0.132394]
[1641446328854,2.00479,3471.6,3471.2,1.70033794]
[1641446329055,2.00479,3471.6,3471.3,0.132394]
[1641446329255,2.00479,3471.6,3471.4,0.063369]
[1641446329656,2.00479,3471.6,3471.5,0.132394]
[1641446329855,2.00479,3471.6,3471.5,1.1093081]
[1641446330055,2.00479,3471.6,3471.5,0.132394]
[1641446330256,2.00479,3471.6,3471.5,1.1093081]
[1641446330458,2.00479,3471.6,3471.5,0.132394]
[1641446330656,2.00479,3471.6,3471.5,1.1093081]
[1641446330856,2.00479,3471.6,3471.4,0.9769141]
[1641446331058,2.00479,3471.6,3471.3,1.51206435]
[1641446331358,2.00479,3471.6,3471.4,0.063369]
[1641446331558,2.00479,3471.6,3471.5,0.132394]
[1641446332259,2.00479,3471.6,3471.5,0.195763]
[1641446332658,2.00479,3471.6,3471.5,2.38264402]
[1641446332859,2.00479,3471.6,3471.5,1.40571974]
[1641446333060,2.00479,3471.6,3471.5,2.38264402]
[1641446333658,2.234781,3471.6,3471.5,2.31927502]
[1641446333858,2.00479,3471.6,3471.5,2.38264402]
[1641446334060,2.00479,3471.6,3471.5,2.31927502]
[1641446334259,2.00479,3471.6,3471.5,1.10931828]
[1641446334659,2.234781,3471.6,3471.5,1.10931828]
[1641446334860,2.234781,3471.6,3471.5,0.97692428]
[1641446335058,2.234781,3471.6,3471.4,1.51206435]
[1641446335259,2.824181,3471.6,3471.4,1.51206435]
[1641446336664,15.254181,3471.6,3471.4,1.51206435]
[1641446337064,15.254181,3471.6,3471.2,0.72330304]
[1641446337268,15.254181,3471.6,3471.3,1.20901593]
[1641446337463,1.5,3471.4,3471.3,1.20901593]
[1641446337664,1.729991,3471.4,3471.3,1.20901593]
[1641446338364,1.729991,3471.4,3471.3,1.07671593]
[1641446338566,1.729991,3471.4,3471.2,0.90724274]
[1641446338767,1.5,3471.3,3471.2,0.90724274]
[1641446339166,1.5,3471.3,3471.2,4.274e-05]
[1641446339466,12.659991,3471.4,3471.2,4.274e-05]
[1641446339868,12.659991,3471.4,3470.6,1.51206435]
[1641446340065,0.32083943,3471.3,3470.4,6.31614903]
[1641446340268,0.32083943,3471.3,3470.7,0.97716416]
[1641446340468,4.32083943,3471.3,3470.7,0.97716416]
[1641446340669,12.43,3470.7,3470.1,1.51311888]
[1641446340866,1.5,3470.2,3470.1,1.51311888]
[1641446341066,0.229991,3470.2,3470.1,1.51311888]
[1641446341267,14.664781,3470.2,3470.1,1.51311888]
[1641446342068,2.234781,3470.2,3470.1,0.34511888]
[1641446342269,14.664781,3470.2,3470.1,0.34511888]
[1641446343172,14.664781,3470.2,3469.9,3.15726107]
[1641446343369,12.43,3470.1,3469.9,3.15726107]
[1641446343670,12.43,3470.1,3469.3,5.00314978]
[1641446343671,0.229991,3470.0,3469.3,1.24883105]
[1641446343869,0.229991,3470.0,3469.3,1.38122505]
[1641446344071,2.00479,3470.2,3469.3,4.32193964]
[1641446344672,2.00479,3470.2,3469.3,2.82193964]
[1641446344872,14.43479,3470.2,3469.3,1.38122505]
[1641446345073,2.00479,3470.2,3469.3,1.38122505]
[1641446345272,2.00479,3470.2,3469.5,2.00479]
[1641446345473,2.00479,3470.2,3469.6,0.132394]
[1641446346874,12.43,3470.1,3469.6,0.132394]
[1641446347075,0.8605,3470.1,3469.5,2.00479]
[1641446347677,0.8605,3470.1,3469.6,0.132394]
[1641446348676,2.00479,3470.2,3469.6,0.132394]
[1641446350177,2.00479,3470.2,3470.1,1.21260416]
[1641446350377,2.00479,3470.2,3470.1,2.06107946]
[1641446350677,2.00479,3470.2,3470.1,1.99771046]
[1641446350879,2.234781,3470.2,3470.1,1.99771046]
[1641446351276,2.00479,3470.2,3470.1,1.99771046]
[1641446352179,2.00479,3470.2,3470.1,2.06107946]
[1641446352581,2.234781,3470.2,3470.1,1.99771046]
[1641446352983,2.00479,3470.2,3470.1,1.99771046]
[1641446353185,1.30288747,3470.6,3470.1,3.1120063]
[1641446353387,1.30288747,3470.7,3470.5,1.5]
[1641446353684,8.747e-05,3470.7,3470.6,1.4401689]
[1641446353883,8.747e-05,3470.7,3470.6,1.6359319]
[1641446354485,2.00479,3471.1,3470.6,1.6359319]
[1641446354884,2.00479,3471.1,3470.6,0.195763]
[1641446355085,2.00479,3471.1,3470.6,0.132394]
[1641446355284,2.00479,3471.1,3470.7,1.42024897]
[1641446356286,2.00479,3471.5,3470.7,2.93372732]
[1641446356487,1.95426876,3472.0,3471.4,1.5]
[1641446356687,1.95426876,3472.0,3471.5,1.5]
[1641446356889,1.95426876,3472.0,3471.8,1.5]
[1641446357086,1.95426876,3472.0,3471.9,0.195763]
[1641446357489,1.95426876,3472.0,3471.9,4.205343]
[1641446357687,1.95426876,3472.0,3471.9,5.705343]
[1641446357888,1.95426876,3472.0,3471.9,6.269043]
[1641446358389,1.95426876,3472.4,3471.9,7.60191925]
[1641446359490,1.95426876,3472.4,3472.3,2.00479]
[1641446359691,1.95426876,3472.4,3472.3,2.200553]
[1641446360893,1.95426876,3473.2,3472.3,2.200553]
[1641446361290,1.95426876,3473.2,3472.3,2.068159]
[1641446361490,1.95426876,3473.2,3472.3,4.072949]
[1641446362190,1.95426876,3473.2,3472.4,1.51924179]
[1641446362391,1.95426876,3473.2,3472.5,0.93577537]
[1641446363492,2.00479,3472.9,3472.5,0.93577537]
[1641446363991,14.43479,3472.9,3472.5,0.93577537]
[1641446364692,12.43,3472.5,3471.9,1.51347835]
[1641446364891,1.5,3472.4,3471.9,1.51347835]
[1641446365091,12.43,3472.3,3471.9,1.51347835]
[1641446365290,12.43,3472.3,3471.7,2.00479]
[1641446365291,12.43,3472.3,3471.8,1.21429861]
[1641446365490,12.43,3472.1,3471.8,1.21429861]
[1641446365693,0.229991,3472.0,3471.8,1.21429861]
[1641446366892,0.229991,3472.0,3471.7,2.00479]
[1641446367995,0.34696191,3471.9,3471.7,2.00479]
[1641446368194,0.229991,3471.8,3471.7,2.00479]
[1641446369195,0.34696191,3471.8,3471.7,2.068159]
[1641446369895,0.34696191,3471.8,3471.7,2.200553]
[1641446370497,0.57695291,3471.8,3471.7,2.00479]
[1641446370697,1.20345291,3471.8,3471.6,0.92310748]
[1641446370899,1.20345291,3471.8,3471.3,1.21429861]
[1641446370900,0.856491,3471.8,3471.7,0.61047319]
[1641446371097,0.856491,3471.8,3471.7,1.8247718]
[1641446371696,2.00479,3471.9,3471.7,3.03587613]
[1641446371896,2.234781,3471.9,3471.7,3.03587613]
[1641446372098,0.35013232,3471.8,3471.7,2.42540294]
[1641446372297,0.35013232,3471.8,3471.7,1.21110433]
[1641446372497,0.35013232,3471.8,3471.7,1.14773533]
[1641446372699,0.58012332,3471.8,3471.7,1.14773533]
[1641446372897,0.35013232,3471.8,3471.7,1.21110433]
[1641446373297,0.35013232,3471.8,3471.7,1.14773533]
[1641446373498,1.30171327,3471.9,3471.7,2.64773533]
[1641446373700,1.30171327,3471.9,3471.8,0.195763]